[Event "3rd VIZAG GM-Open 2022"]
[Site "Visakapatnam"]
[Date "2022.06.14"]
[Round "6.1"]
[White "Amonatov, Farrukh"]
[Black "Abdyjapar, Asyl"]
[Result "1-0"]
[ECO "C95"]
[WhiteElo "2622"]
[BlackElo "2346"]
[Annotator "TA"]
[PlyCount "101"]
[EventDate "2022.06.13"]
[EventType "swiss"]
[EventCountry "IND"]
[SourceTitle "playchess.com"]
[Source "ChessBase"]
[SourceQuality "1"]
[TimeControl "5400+30"]

{[%evp 30,101,23,6,47,43,37,37,56,43,33,13,25,11,20,10,60,26,36,39,39,27,45,44,48,56,71,54,72,41,96,104,78,100,135,137,144,133,234,128,149,137,156,166,145,166,147,165,143,162,156,159,217,206,325,325,288,216,234,241,239,189,484,479,469,452,929,906,1023,1005,29983,29984,29997,29998]} 1. e4 {[%emt 0:00:04]} e5 {[%emt 0:02:25]} 2. Nf3 {[%emt 0:00:10]} Nc6 {[%emt 0:00:03]} 3. Bb5 {[%emt 0:00:16][%cal Bf1b5,Bb5a4,Ba4b3,Bb3c2,Bc2d3][%mdl 32]} a6 {[%emt 0:00:03]} 4. Ba4 {[%emt 0:00:09]} Nf6 {[%emt 0:00:05]} 5. O-O {[%emt 0:00:10]} Be7 {[%emt 0:00:04]} 6. Re1 {[%emt 0:00:07]} b5 {[%emt 0:00:07]} 7. Bb3 {[%emt 0:00:08]} O-O {[%emt 0:00:37]} 8. h3 {[%emt 0:00:08]} d6 {[%emt 0:00:06]} 9. c3 {[%emt 0:00:09]} Nb8 {[%emt 0:00:02]} 10. d4 {[%emt 0:00:13]} Nbd7 {[%emt 0:00:03]} 11. Nbd2 {[%emt 0:00:11]} Bb7 {[%emt 0:00:06]} 12. Bc2 {[%emt 0:00:10]} Re8 {[%emt 0:00:04]} 13. Nf1 {[%emt 0:00:10]} Bf8 {[%emt 0:00:03]} 14. Ng3 {[%emt 0:00:10]} g6 {[%emt 0:00:03]} 15. a4 {[%emt 0:00:48]} Bg7 {[%emt 0:02:57]} 16. Bd3 {[%emt 0:00:22]} c6 {[%emt 0:00:04] C95: Closed Ruy Lopez: Breyer Variation with 10 d4.} 17. Bg5 {[%emt 0:00:27] 17.Be3 is not played anymore.} Nf8 {[%emt 0:00:17]} 18. Qd2 {[%emt 0:01:58]} Qc7 {[%emt 0:00:43] White is slightly better.} 19. b4 {[%emt 0:01:08] has lost popularity (19.Bh6).} Ne6 {[%emt 0:03:47]} 20. Be3 {[%emt 0:01:49]} Nd7 {[%emt 0:05:08]} 21. Bf1 {[%emt 0:12:38]} Nb6 {[%emt 0:02:58]} 22. a5 {[%emt 0:04:56]} Nd7 {[%emt 0:03:45]} (22... Nc4 $1 $11 23. Bxc4 exd4 24. Bxe6 (24. Nxd4 bxc4 25. Nxe6 Rxe6 $11) 24... dxe3 25. Bxf7+ (25. Qxe3 Rxe6 26. h4 c5 $17) 25... Qxf7 26. Qxe3 c5) 23. dxe5 {[%emt 0:06:07]} dxe5 {[%emt 0:07:56]} 24. c4 {[%emt 0:00:40]} Rad8 {[%emt 0:00:52][%cal Oe6d4]} 25. Rad1 {[%emt 0:04:28] [#]} Qb8 $146 {[%emt 0:15:27]} ({Predecessor:} 25... Nf6 26. Qc1 Rxd1 27. Rxd1 bxc4 28. Bxc4 c5 29. Bxc5 Nxc5 30. bxc5 Qxa5 31. Ng5 Rf8 32. Nxf7 Rxf7 {1-0 (39) Filippov,D (1486)-Cusu,L (1135) LSS email 2011}) 26. Qc1 {[%emt 0:04:17]} Bf8 {[%emt 0:03:02]} 27. c5 {[%emt 0:05:51]} Bg7 {[%emt 0:04:51]} 28. Bd3 {[%emt 0:05:51]} Ndf8 {[%emt 0:01:22]} 29. Bc2 {[%emt 0:00:54]} Nf4 {[%emt 0:04:55]} (29... Bc8 $14) 30. Bxf4 $16 {[%emt 0:01:24]} exf4 {[%emt 0:00:03]} 31. Ne2 {[%emt 0:00:07][%cal Bg3e2,Be2d4,Bd4f3][%mdl 32]} Bc8 {[%emt 0:03:49]} 32. Ned4 {[%emt 0:02:36]} Qc7 {[%emt 0:01:08]} 33. e5 $1 {[%emt 0:02:39]} g5 {[%emt 0:04:02]} (33... Bxe5 $16 34. Nxc6 (34. Rxe5 Rxe5 35. Nxe5 Qxe5 $16) 34... Qxc6 35. Rxe5 Rxd1+ 36. Qxd1 Rxe5 37. Nxe5 Qf6) 34. Nxg5 {[%emt 0:03:43]} ({White should play} 34. Bb3 $18) 34... Rxe5 {[%emt 0:00:30]} 35. Ndf3 {[%emt 0:07:08] White is much more active.} Rxe1+ {[%emt 0:02:37]} 36. Rxe1 {[%emt 0:00:30] Black must now prevent Bb3.} h6 {[%emt 0:00:16]} 37. Ne4 {[%emt 0:00:06] Pair of Knights!} Be6 {[%emt 0:00:55]} 38. Nd6 {[%emt 0:00:17]} Rxd6 {[%emt 0:02:31]} 39. cxd6 {[%emt 0:00:03]} Qxd6 {[%emt 0:00:03] [#]} 40. Qa3 $1 {[%emt 0:03:35]} Nd7 {[%emt 0:01:08]} (40... Qd5 $16 {keeps fighting.} 41. Qd3 Qc4) 41. Bb3 $18 {[%emt 0:03:01]} Bxb3 {[%emt 0:02:29]} (41... Nf8 $142) 42. Qxb3 {[%emt 0:00:04] And now Qd1 would win.} Nf6 {[%emt 0:00:17]} 43. Ne5 {[%emt 0:08:08]} Nd5 {[%emt 0:00:10]} 44. Nd3 {[%emt 0:00:06] Re8+ is the strong threat.} Bc3 {[%emt 0:06:23]} 45. Re4 {[%emt 0:09:45]} Qg6 $2 {[%emt 0:04:16]} (45... f3 46. g3 (46. gxf3 h5 $16) 46... Kf8) 46. Re8+ {[%emt 0:00:35]} Kh7 {[%emt 0:00:15]} 47. Qd1 {[%emt 0:00:18]} Nxb4 {[%emt 0:02:37]} (47... Qf5 $142 48. Ra8 f3 49. Qxf3 Qxf3 50. gxf3 c5 51. bxc5 Bxa5 52. Rxa6 Bc7) 48. Nxb4 {[%emt 0:01:28]} Bxb4 {[%emt 0:00:03]} 49. Qd4 {[%emt 0:00:11][%csl Ge8,LRb4,LRf4][%cal Rd4h8] [#]} Qb1+ {[%emt 0:04:40]} 50. Kh2 {[%emt 0:00:10]} Bxa5 {[%emt 0:00:22]} 51. Qf6 {[%emt 0:00:15] Weighted Error Value: White=0.11 (very precise) /Black=0.53} 1-0

[Event "3rd VIZAG GM-Open 2022"]
[Site "Visakapatnam"]
[Date "2022.06.14"]
[Round "6.2"]
[White "Konguvel, Ponnuswamy"]
[Black "Stupak, Kirill"]
[Result "1/2-1/2"]
[ECO "C02"]
[WhiteElo "2331"]
[BlackElo "2440"]
[Annotator "TA"]
[PlyCount "82"]
[EventDate "2022.06.13"]
[EventType "swiss"]
[EventCountry "IND"]
[SourceTitle "playchess.com"]
[Source "ChessBase"]
[SourceQuality "1"]
[TimeControl "5400+30"]

{[%evp 11,82,0,-8,-24,-27,-28,-18,-34,-27,-37,-18,-59,-31,-25,-21,-27,-29,-21,-31,-27,-20,-33,-49,-35,-20,-23,-18,-14,-14,-25,-21,-17,-15,-15,-14,-20,-20,-13,-24,-25,0,0,0,0,0,-62,-69,-71,-68,-68,-72,-97,-67,-110,-79,-75,-68,-79,-79,-79,-79,-79,0,0,0,-8,-8,-8,-8,-8,0,0,0]} 1. e4 {[%emt 0:00:03]} e6 {[%emt 0:10:36]} 2. d4 {[%emt 0:00:08]} d5 {[%emt 0:00:23]} 3. e5 {[%emt 0:00:13]} c5 {[%emt 0:00:23]} 4. c3 {[%emt 0:00:10]} Qb6 {[%emt 0:00:03]} 5. Nf3 {[%emt 0:00:12]} Nc6 {[%emt 0:00:37]} 6. Bd3 {[%emt 0:00:27]} cxd4 {[%emt 0:00:03]} 7. O-O $1 {[%emt 0:00:22][%mdl 4] is now more promising than 7.cxd4. C02: French: Advance Variation.} Bd7 {[%emt 0:00:02]} 8. Re1 {[%emt 0:00:21]} Nge7 {[%emt 0:00:14]} 9. h4 {[%emt 0:00:46]} Rc8 {[%emt 0:00:59]} 10. Nbd2 {[%emt 0:04:50]} dxc3 {[%emt 0:00:37]} 11. bxc3 {[%emt 0:00:06]} Na5 {[%emt 0:00:08]} (11... Qc7 $5 {[%cal Re7g6]}) 12. Rb1 {[%emt 0:03:05]} Qc7 {[%emt 0:02:02]} 13. Nb3 {[%emt 0:01:00] [#]} Nxb3 $146 {[%emt 0:03:07]} ({Predecessor:} 13... Nec6 14. Nbd4 Nxd4 15. cxd4 Be7 16. Bg5 Ba3 17. h5 h6 18. Bf4 a6 19. Kh2 b5 {1-0 (100) Jones,G (2670)-Erigaisi,A (2559) Chess.com INT 2020}) 14. axb3 {[%emt 0:00:31]} Qxc3 {[%emt 0:01:50]} 15. b4 {[%emt 0:17:46]} a6 {[%emt 0:05:01]} 16. Be3 {[%emt 0:01:20]} Qc7 {[%emt 0:07:46]} 17. b5 {[%emt 0:16:07] Prevents Nc6.} Bxb5 {[%emt 0:09:01]} 18. Bxb5+ {[%emt 0:02:27]} axb5 {[%emt 0:00:03]} 19. Rxb5 {[%emt 0:00:53]} Nf5 {[%emt 0:04:47]} 20. Qa4 $1 {[%emt 0:14:48][%csl LRb7,LRd5]} Qd7 {[%emt 0:01:32]} 21. Rc1 {[%emt 0:00:33]} Rxc1+ {[%emt 0:03:57]} (21... Nxe3 $2 22. Rxc8+ Qxc8 23. Rc5+ Kd8 24. Rxc8+ Kxc8 25. Qe8+ Kc7 26. fxe3 $18) 22. Bxc1 {[%emt 0:00:04] And now Qa8+ would win.} Be7 {[%emt 0:01:07][%cal Bf8e7,Be7d8,Bd8c7][%mdl 32]} 23. Qa8+ {[%emt 0:11:12]} Qd8 {[%emt 0:01:32]} 24. Qxd8+ {[%emt 0:00:31]} Bxd8 {[%emt 0:08:10]} 25. Rxb7 {[%emt 0:00:21]} O-O {[%emt 0:12:37]} 26. Ba3 {[%emt 0:07:35]} Re8 {[%emt 0:00:06]} 27. Rb8 {[%emt 0:00:05]} g6 {[%emt 0:01:03]} 28. g4 {[%emt 0:02:32]} (28. Bb4 $11) 28... Ng7 $15 {[%emt 0:00:04]} 29. Kg2 {[%emt 0:05:42]} Bc7 {[%emt 0:03:35]} 30. Rb7 {[%emt 0:00:03]} Rc8 {[%emt 0:00:16]} 31. Be7 {[%emt 0:01:47]} h5 {[%emt 0:04:48]} 32. Kg3 {[%emt 0:03:48]} hxg4 {[%emt 0:08:53]} 33. Kxg4 {[%emt 0:00:05]} Ne8 {[%emt 0:03:21]} 34. Ng5 {[%emt 0:02:22]} Bxe5 {[%emt 0:07:42] aiming for ...Rc4+.} 35. Nxf7 {[%emt 0:00:05][%mdl 64] Decoy} Kxf7 {[%emt 0:00:02]} 36. Bd6+ {[%emt 0:00:05] [#]} Kf6 {[%emt 0:00:45]} (36... Rc7 $1 $17 37. Rxc7+ Nxc7 38. Bxe5 Nb5) 37. Be7+ $11 {[%emt 0:00:03] The position is equal.} Kf7 {[%emt 0:00:03]} 38. Bd6+ {[%emt 0:00:03] [#]} Rc7 $1 {[%emt 0:00:04]} 39. Rxc7+ {[%emt 0:00:14]} Nxc7 {[%emt 0:00:01]} 40. Bxe5 {[%emt 0:00:01]} Na6 {[%emt 0:01:53]} 41. Bd6 $1 {[%emt 0:02:40] Against Nc5} e5 {[%emt 0:01:10] Weighted Error Value: White=0.08 (flawless) /Black=0.09 (flawless)} 1/2-1/2

[Event "3rd VIZAG GM-Open 2022"]
[Site "Visakapatnam"]
[Date "2022.06.14"]
[Round "6.3"]
[White "Audi Ameya"]
[Black "Mitrabha, Guha"]
[Result "1-0"]
[ECO "C54"]
[WhiteElo "2389"]
[BlackElo "2500"]
[Annotator "TA"]
[PlyCount "123"]
[EventDate "2022.06.13"]
[EventType "swiss"]
[EventCountry "IND"]
[SourceTitle "playchess.com"]
[Source "ChessBase"]
[SourceQuality "1"]
[TimeControl "5400+30"]

{[%evp 9,123,22,33,29,31,6,12,14,13,2,4,0,0,0,0,0,13,9,22,7,9,0,18,10,6,0,0,0,0,-30,-18,-22,-22,-25,0,-29,0,0,34,35,42,40,57,51,52,53,51,44,98,78,93,49,108,109,209,216,216,187,214,20,16,6,104,100,94,108,83,0,258,257,227,184,171,132,154,118,278,227,233,203,204,150,148,162,302,324,289,156,89,67,81,94,98,106,587,593,568,550,653,607,585,561,847,949,12838,12839,12838,12839,12843,12843,12844,12844,12845,12845,12846,12846]} 1. e4 {[%emt 0:00:01]} e5 {[%emt 0:08:36]} 2. Nf3 {[%emt 0:00:04]} Nc6 {[%emt 0:00:08]} 3. Bc4 {[%emt 0:00:13]} Bc5 {[%emt 0:00:08]} 4. c3 {[%emt 0:00:10]} Nf6 {[%emt 0:00:08]} 5. d3 {[%emt 0:00:02]} a5 {[%emt 0:00:18]} 6. O-O {[%emt 0:00:51] C54: Giuoco Piano: 4 c3 Nf6, main lines with 5 d4 and 5 d3.} d6 {[%emt 0:00:06]} 7. Re1 {[%emt 0:01:10]} O-O {[%emt 0:00:09]} 8. h3 {[%emt 0:01:20] The position is equal.} h6 {[%emt 0:00:07]} 9. a4 {[%emt 0:00:09]} Be6 {[%emt 0:00:08]} 10. Bxe6 {[%emt 0:00:16]} fxe6 {[%emt 0:00:03]} 11. Be3 {[%emt 0:00:04]} Bxe3 {[%emt 0:04:05]} 12. Rxe3 {[%emt 0:00:08]} Qe8 {[%emt 0:00:50]} 13. Nbd2 {[%emt 0:00:40] [#]} Kh8 $146 {[%emt 0:02:07]} ({Predecessor:} 13... b6 14. d4 exd4 15. cxd4 Nb4 16. Rc1 Rc8 17. Qb3 Kh8 18. Rce1 Qf7 19. Nc4 Nd7 {0-1 (43) Hou,Y (2658)-Bu,X (2700) Shenzhen 2022}) 14. Nf1 {[%emt 0:02:09]} Nh5 {[%emt 0:07:41]} 15. g3 {[%emt 0:01:18]} Qf7 {[%emt 0:03:03]} 16. N1h2 {[%emt 0:01:31]} Nf6 {[%emt 0:08:33]} 17. Qf1 {[%emt 0:13:17]} Rae8 {[%emt 0:02:44]} 18. Rae1 {[%emt 0:07:11]} Nd7 {[%emt 0:00:55]} 19. d4 {[%emt 0:01:59]} exd4 {[%emt 0:00:11]} 20. cxd4 {[%emt 0:04:40]} e5 {[%emt 0:00:16]} 21. dxe5 {[%emt 0:11:50]} dxe5 {[%emt 0:04:05]} 22. Rc1 {[%emt 0:07:36]} Re6 {[%emt 0:02:11]} 23. Qb5 {[%emt 0:07:07]} Nb6 {[%emt 0:04:01]} 24. b3 {[%emt 0:06:48]} Rf6 {[%emt 0:02:29]} 25. Rcc3 {[%emt 0:00:04]} Re6 {[%emt 0:08:53]} 26. Ng4 {[%emt 0:03:08]} Qe7 {[%emt 0:03:38]} 27. Kg2 {[%emt 0:01:13]} h5 {[%emt 0:02:08]} 28. Ngh2 {[%emt 0:00:28]} g6 {[%emt 0:00:49]} (28... Kg8 $14) 29. h4 {[%emt 0:00:43]} Ref6 {[%emt 0:00:44]} 30. Nf1 {[%emt 0:08:36]} Rb8 {[%emt 0:07:56]} ({Better is} 30... Nd4 $14 31. Qxa5 c5) 31. N1d2 $16 {[%emt 0:00:45]} Nc8 {[%emt 0:00:42] [#]} (31... Rd8 $16 {is a better defense.}) 32. Rxc6 $1 $18 {[%emt 0:01:51][%mdl 512]} Rxc6 {[%emt 0:03:27]} 33. Nxe5 {[%emt 0:00:04][%cal Bf3e5,Be5d3,Bd3f4][%mdl 32]} (33. Qxe5+ Qxe5 34. Nxe5 Rc2 $14) 33... Re6 {[%emt 0:01:42]} 34. Ndf3 {[%emt 0:01:16]} ({White should try} 34. Nd3 $18) 34... Nd6 $11 {[%emt 0:01:02]} 35. Qxa5 {[%emt 0:03:46]} Re8 {[%emt 0:00:35]} (35... Kg8 $1 $11 {remains equal.}) 36. Nd3 $1 $16 {[%emt 0:01:05] Hoping for Nf4. White is more active. Pair of Knights!} Rxe4 {[%emt 0:00:31] [#]} (36... Nxe4 $2 37. Nf4 Qd7 38. Nxe6 Rxe6 39. Ne5 $18) 37. Nf4 $1 $36 {[%emt 0:05:30][%mdl 2048] White is really pushing.} Qg7 {[%emt 0:00:35] [#]} 38. Rxe4 {[%emt 0:00:46]} (38. Rd3 $1 $16) 38... Rxe4 $4 {[%emt 0:03:37][%mdl 8192] [#]} (38... Nxe4 $11 39. Ne5 Kh7 40. Nexg6 (40. Nfxg6 Nd6 $11) 40... c5) 39. Ne5 $1 $18 {[%emt 0:00:04][%mdl 512]} Rxf4 {[%emt 0:00:30]} 40. gxf4 {[%emt 0:00:04][%mdl 4096] Endgame KQN-KQN} Kh7 {[%emt 0:00:15]} 41. Nf3 {[%emt 0:01:20]} Qd7 {[%emt 0:02:19]} 42. Qg5 {[%emt 0:01:54]} Qe8 $2 {[%emt 0:09:58]} (42... Nf7 $16 43. Qf6 Qg4+ 44. Kh2 Qxf3 45. Qxf7+ Kh6) 43. Qe5 {[%emt 0:01:22]} Qd7 {[%emt 0:02:22] Strongly threatening ...Qg4+.} 44. Ng5+ {[%emt 0:00:19]} Kg8 {[%emt 0:00:02]} 45. Qe6+ {[%emt 0:01:37]} Qxe6 {[%emt 0:00:03]} 46. Nxe6 $16 {[%emt 0:00:03] Threatens to win with a5. KN-KN} Nf5 {[%emt 0:04:25]} (46... Kf7 $142 47. Nxc7 Nf5) 47. Kh3 $18 {[%emt 0:00:23]} ({Not} 47. Nxc7 Kf7 $14) 47... Kf7 {[%emt 0:01:33]} 48. Nxc7 {[%emt 0:00:53]} ({Only move:} 48. Nd8+ $18 Ke7 49. Nxb7) 48... Ke7 $16 {[%emt 0:03:42]} 49. Nb5 {[%emt 0:02:06]} Ke6 {[%emt 0:00:00]} 50. Nc3 {[%emt 0:00:07]} Nd4 {[%emt 0:00:00]} 51. b4 {[%emt 0:00:04]} Nc2 $2 {[%emt 0:00:00][%mdl 8192]} (51... Nf5 $16 52. Nd1 Ne7) 52. b5 $18 {[%emt 0:00:32] White is clearly winning.} b6 {[%emt 0:00:00]} 53. f5+ {[%emt 0:02:11]} gxf5 {[%emt 0:00:00]} 54. Kg3 {[%emt 0:00:02]} Ke5 {[%emt 0:00:00]} 55. Ne2 {[%emt 0:02:13] Against f4+} Na1 {[%emt 0:00:12] [#]} 56. Nd4 {[%emt 0:01:41][%mdl 512] Against Nb3} f4+ {[%emt 0:01:24]} (56... Kd5 57. Nxf5) 57. Kf3 {[%emt 0:00:34]} Kxd4 {[%emt 0:00:33]} 58. a5 $1 {[%emt 0:00:02][%mdl 64] Promotion} bxa5 {[%emt 0:01:37]} 59. b6 {[%emt 0:00:01]} a4 {[%emt 0:00:53]} 60. b7 {[%emt 0:00:01]} Nb3 {[%emt 0:00:16]} 61. b8=Q {[%emt 0:00:06]} Kc3 {[%emt 0:00:05]} 62. Qe5+ {[%emt 0:00:49] Weighted Error Value: White=0.20 (precise) /Black=0.41} 1-0

[Event "3rd VIZAG GM-Open 2022"]
[Site "Visakapatnam"]
[Date "2022.06.14"]
[Round "6.4"]
[White "Nitin, S.."]
[Black "Paichadze, Luka"]
[Result "1/2-1/2"]
[ECO "B12"]
[WhiteElo "2399"]
[BlackElo "2567"]
[Annotator "TA"]
[PlyCount "61"]
[EventDate "2022.06.13"]
[EventType "swiss"]
[EventCountry "IND"]
[SourceTitle "playchess.com"]
[Source "ChessBase"]
[SourceQuality "1"]
[TimeControl "5400+30"]

{[%evp 9,61,11,2,0,40,9,69,70,67,70,79,-22,40,39,65,70,81,72,24,11,95,97,109,72,98,85,162,142,134,124,125,127,127,127,187,187,214,159,183,169,162,132,203,201,235,224,296,250,233,0,254,0,202,0]} 1. e4 {[%emt 0:00:33]} c6 {[%emt 0:01:37]} 2. d4 {[%emt 0:00:11]} d5 {[%emt 0:00:04]} 3. e5 {[%emt 0:00:07]} c5 {[%emt 0:00:56]} 4. dxc5 {[%emt 0:00:09]} e6 {[%emt 0:00:09]} 5. a3 {[%emt 0:00:25]} Bxc5 {[%emt 0:00:56]} 6. Qg4 {[%emt 0:00:11] B12: Caro-Kann: Advance Variation.} g6 {[%emt 0:01:30]} 7. Bd3 {[%emt 0:05:08]} h5 {[%emt 0:04:00] [#]} (7... f6 $11) 8. Qe2 $146 {[%emt 0:00:40] White is slightly better.} ({Predecessor:} 8. Qg3 h4 9. Qf4 Bf8 10. Nc3 Bh6 11. Qg4 Bxc1 12. Rxc1 Nh6 13. Qe2 Qg5 14. f4 Qxf4 {0-1 (52) Lei,T (2505)-Stefanova,A (2466) Chess.com INT 2020}) 8... Nh6 {[%emt 0:04:18]} 9. Nf3 {[%emt 0:01:24]} Nf5 {[%emt 0:02:12]} 10. b4 {[%emt 0:02:36]} (10. O-O $16) 10... Be7 {[%emt 0:00:57]} ({Black should play} 10... Nd4 $1 $11 11. Nxd4 Bxd4) 11. O-O {[%emt 0:00:20]} a5 {[%emt 0:00:51]} 12. b5 $1 {[%emt 0:05:40]} Nd7 {[%emt 0:06:03]} 13. Rd1 {[%emt 0:01:42]} Qc7 {[%emt 0:01:36]} 14. Nbd2 {[%emt 0:03:21]} Nb6 {[%emt 0:15:09]} (14... b6 $11 {remains equal.}) 15. a4 $16 {[%emt 0:04:04]} O-O {[%emt 0:05:44]} 16. Nb3 {[%emt 0:06:11]} Rd8 {[%emt 0:03:15]} 17. h3 {[%emt 0:01:54]} Ng7 {[%emt 0:01:43]} (17... Nc4 $16) 18. Bh6 {[%emt 0:02:52]} Bd7 {[%emt 0:04:57]} 19. g4 {[%emt 0:20:20]} Rac8 {[%emt 0:01:52]} 20. Kg2 {[%emt 0:04:43] White is more active.} Nc4 {[%emt 0:01:32]} 21. Rg1 {[%emt 0:06:05]} Nb2 {[%emt 0:06:38]} (21... b6 $16) 22. Nfd4 $18 {[%emt 0:03:34]} h4 {[%emt 0:03:32]} 23. Bf4 {[%emt 0:03:20]} b6 {[%emt 0:01:15]} 24. Rgb1 {[%emt 0:01:09]} Nc4 {[%emt 0:00:51]} 25. Rd1 {[%emt 0:02:33]} Qb7 {[%emt 0:02:43]} (25... Nb2 $16) 26. Nf3 {[%emt 0:01:25]} Be8 {[%emt 0:00:49]} 27. Nbd4 {[%emt 0:00:29]} Nb2 {[%emt 0:06:08]} 28. Rdb1 {[%emt 0:00:27]} Nc4 {[%emt 0:01:14]} 29. Rd1 {[%emt 0:04:14]} Nb2 $1 {[%emt 0:01:19]} 30. Rdb1 {[%emt 0:00:06]} Nc4 {[%emt 0:00:04]} 31. Rd1 $2 {[%emt 0:00:05] Weighted Error Value: White=0.28 (precise) /Black=0.25 (precise)} (31. Re1 $18) 1/2-1/2

[Event "3rd VIZAG GM-Open 2022"]
[Site "Visakapatnam"]
[Date "2022.06.14"]
[Round "6.5"]
[White "Harsha Bharathakoti"]
[Black "Nguyen, Van Huy"]
[Result "1-0"]
[ECO "B12"]
[WhiteElo "2547"]
[BlackElo "2405"]
[Annotator "TA"]
[PlyCount "59"]
[EventDate "2022.06.13"]
[EventType "swiss"]
[EventCountry "IND"]
[SourceTitle "playchess.com"]
[Source "ChessBase"]
[SourceQuality "1"]
[TimeControl "5400+30"]

{[%evp 9,59,0,12,0,0,0,18,0,63,56,56,45,56,44,60,53,64,65,89,90,89,75,92,86,109,112,109,109,113,129,131,121,127,129,134,122,370,377,377,391,619,599,613,614,602,597,627,641,640,633,706,673]} 1. e4 {[%emt 0:01:11]} c6 {[%emt 0:00:51]} 2. d4 {[%emt 0:00:03]} d5 {[%emt 0:00:15]} 3. f3 {[%emt 0:00:03]} e6 {[%emt 0:02:43]} 4. Nc3 {[%emt 0:00:03]} Bb4 {[%emt 0:00:39]} 5. Bd2 {[%emt 0:00:03]} Ne7 {[%emt 0:07:06]} 6. a3 {[%emt 0:01:09] B12: Caro-Kann: Advance Variation.} Bxc3 {[%emt 0:03:31]} 7. Bxc3 {[%emt 0:00:23]} b6 {[%emt 0:00:50]} 8. h4 {[%emt 0:08:17][%cal Bh2h4,Bh4h5][%mdl 32] The position is equal.} Ba6 {[%emt 0:03:18]} ({Black should play} 8... Qc7 $11) 9. Bxa6 $14 {[%emt 0:00:58]} Nxa6 {[%emt 0:00:06] [#]} 10. Qd3 $146 {[%emt 0:05:51]} ({Predecessor:} 10. Qe2 Nc7 11. exd5 Qxd5 12. Qe4 Nb5 13. Ne2 O-O-O 14. Qxd5 Rxd5 15. Bb4 Rd7 16. Bxe7 Rxe7 {½-½ (73) Klimkowski,J (2297)-Socko,B (2619) Lodz 2021}) 10... Nc7 {[%emt 0:02:42]} 11. Ne2 {[%emt 0:07:56]} Qd7 {[%emt 0:08:07]} 12. h5 {[%emt 0:07:19]} h6 {[%emt 0:03:46]} 13. O-O-O {[%emt 0:00:06]} O-O-O {[%emt 0:01:27]} 14. Be1 {[%emt 0:10:11][%cal Bc3e1,Be1g3,Bg3h4][%mdl 32]} Kb7 {[%emt 0:09:06]} 15. Bg3 {[%emt 0:01:25]} Rhe8 {[%emt 0:08:40]} 16. Kb1 {[%emt 0:08:42]} f6 {[%emt 0:03:34]} 17. Rhe1 {[%emt 0:10:11]} Nc8 {[%emt 0:04:17]} 18. e5 {[%emt 0:06:53]} Rg8 {[%emt 0:08:59]} 19. Bh4 {[%emt 0:06:43]} Rdf8 {[%emt 0:02:23]} 20. exf6 {[%emt 0:01:57] White is more active.} gxf6 {[%emt 0:00:16] [#]} 21. Nf4 {[%emt 0:00:02]} Nd6 {[%emt 0:09:23]} 22. g4 {[%emt 0:00:19]} c5 $2 {[%emt 0:00:38] This costs Black the game.} (22... Rf7 $16) 23. dxc5 $18 {[%emt 0:00:40]} Nc8 {[%emt 0:03:49]} 24. c4 {[%emt 0:05:10]} d4 {[%emt 0:01:33]} (24... bxc5 $142 25. cxd5 exd5 26. Nxd5 Nxd5) 25. cxb6 {[%emt 0:02:26] White is clearly winning.} Nxb6 {[%emt 0:00:42] [#]} 26. Nxe6 {[%emt 0:00:57][%mdl 512]} Nxe6 {[%emt 0:00:46]} 27. Qe4+ {[%emt 0:00:03]} Kc8 {[%emt 0:01:21]} 28. Qxe6 {[%emt 0:00:11]} Qxe6 {[%emt 0:00:02]} 29. Rxe6 {[%emt 0:00:05]} f5 {[%emt 0:00:03]} 30. Rxd4 {[%emt 0:00:11] Weighted Error Value: White=0.03 (flawless) /Black=0.33} 1-0